bitfinex-derivatives/quotes_BNBF0:USTF0_20251002
["timestamp","ask_amount","ask_price","bid_price","bid_amount"]
[1759402713055,0.85578205,1044.0,1043.5,1.241]
[1759402713259,0.85578205,1044.1,1043.5,1.241]
[1759402715665,0.85578205,1044.2,1043.5,1.241]
[1759402715859,0.85578205,1044.3,1043.5,1.241]
[1759402716358,0.85578205,1044.2,1043.5,1.241]
[1759402717360,0.85578205,1044.3,1043.5,1.241]
[1759402718463,0.85578205,1044.2,1043.5,1.241]
[1759402718962,0.85578205,1044.4,1043.5,1.241]
[1759402719462,0.85578205,1044.3,1043.5,1.241]
[1759402723266,0.85578205,1044.3,1043.3,0.842]
[1759402725776,0.85578205,1043.9,1043.4,1.045]
[1759402733476,0.85578205,1044.0,1043.4,1.045]
[1759402733873,0.85578205,1043.9,1043.4,1.045]
[1759402734093,0.85578205,1044.0,1043.4,1.045]
[1759402734277,0.85578205,1043.9,1043.4,1.045]
[1759402738980,0.85578205,1044.0,1043.4,1.045]
[1759402739880,0.85578205,1043.9,1043.4,1.045]
[1759402740177,0.85578205,1044.0,1043.4,1.045]
[1759402740579,0.85578205,1043.9,1043.4,1.045]
[1759402741786,1.02243475,1044.7,1043.4,1.045]
[1759402743890,0.85578205,1044.6,1043.4,1.045]
[1759402745688,0.85578205,1044.5,1043.4,1.045]
[1759402746389,0.85578205,1044.4,1043.4,1.045]
[1759402747187,0.85578205,1044.5,1043.4,1.045]
[1759402748088,0.85578205,1044.4,1043.4,1.045]
[1759402748395,0.85578205,1044.3,1043.4,1.045]
[1759402748890,1.28295428,1044.6,1043.4,1.045]
[1759402748891,0.85578205,1044.4,1043.4,1.045]
[1759402751194,0.85578205,1044.4,1043.5,1.054]
[1759402758203,0.85578205,1044.3,1043.5,1.054]
[1759402759304,0.85578205,1044.4,1043.5,1.054]
[1759402760107,0.85578205,1044.3,1043.5,1.054]
[1759402763210,0.85578205,1044.2,1043.4,1.045]
[1759402763703,0.85578205,1044.4,1043.4,1.045]
[1759402763907,0.85578205,1044.3,1043.4,1.045]
[1759402765707,0.85578205,1044.4,1043.4,1.045]
[1759402766505,0.85578205,1044.3,1043.4,1.045]
[1759402766910,0.85578205,1044.3,1043.5,1.353]
[1759402769206,1.28295428,1044.6,1043.5,1.353]
[1759402769207,0.1666527,1044.7,1043.5,1.353]
[1759402769710,0.1666527,1044.7,1043.6,0.984]
[1759402770813,1.02243475,1044.7,1043.6,0.984]
[1759402775011,0.1666527,1044.7,1043.6,0.984]
[1759402777616,0.85578205,1045.2,1043.6,0.984]
[1759402777815,0.16664552,1044.8,1043.6,0.984]
[1759402780313,0.85578205,1045.1,1043.6,0.984]
[1759402780511,0.16662557,1044.9,1043.6,0.984]
[1759402781814,0.16662557,1044.9,1043.7,1.87913021]
[1759402782014,0.16662557,1044.9,1043.7,1.88313021]
[1759402790427,0.16662557,1044.9,1043.6,0.984]
[1759402799743,0.16662557,1044.9,1043.5,1.353]
[1759402801137,0.85578205,1045.5,1043.5,1.353]
[1759402801334,0.85578205,1045.6,1043.5,1.353]
[1759402801533,0.16660004,1045.1,1043.5,1.353]
[1759402801737,0.16660004,1045.1,1043.6,1.002]
[1759402807240,0.85578205,1045.5,1043.6,1.002]
[1759402807437,0.16657532,1045.3,1043.6,1.002]
[1759402811152,0.16657532,1045.3,1043.7,0.973]
[1759402815145,0.85578205,1046.2,1043.7,0.973]
[1759402815341,0.16657931,1045.3,1043.7,1.61378035]
[1759402815544,0.16657931,1045.3,1043.7,0.973]
[1759402815744,0.85578205,1045.8,1043.7,0.973]
[1759402815945,0.16657931,1045.1,1043.7,0.973]
[1759402816246,0.85578205,1045.4,1043.7,0.973]
[1759402816444,0.16659286,1045.1,1043.7,0.973]
[1759402822149,0.16659286,1045.1,1043.8,1.90971619]
[1759402825555,0.16659286,1045.1,1043.8,1.91371619]
[1759402832059,1.02237491,1045.1,1043.8,1.91371619]
[1759402832254,0.85578205,1045.0,1043.8,1.91371619]
[1759402832555,1.02237491,1045.1,1043.8,1.91371619]
[1759402832756,0.16659286,1045.1,1043.8,1.91371619]
[1759402833857,1.02237491,1045.1,1043.8,1.91371619]
[1759402835260,0.16659286,1045.1,1043.8,1.91371619]
[1759402835860,1.02237491,1045.1,1043.8,2.55449654]
[1759402836057,1.28295428,1045.3,1043.8,2.55449654]
[1759402836058,0.85578205,1045.3,1043.8,2.55449654]
[1759402836362,1.02236853,1045.4,1044.0,0.64078035]
[1759402836560,0.16658648,1045.4,1044.0,0.64078035]
[1759402837157,1.02236853,1045.4,1044.0,0.64078035]
[1759402837361,0.16658648,1045.4,1044.0,0.64078035]
[1759402841269,0.16658648,1045.4,1044.1,1.205]
[1759402841470,0.16658648,1045.4,1044.2,1.92449218]
[1759402841968,1.02236853,1045.4,1044.2,1.92449218]
[1759402842169,0.85578205,1045.3,1044.2,1.92449218]
[1759402845673,0.16658648,1045.4,1044.2,1.92449218]
[1759402847570,1.02236853,1045.4,1044.2,1.92449218]
[1759402847772,0.85578205,1045.3,1044.2,1.92449218]
[1759402848075,0.85578205,1045.2,1044.2,1.92449218]
[1759402848271,0.85578205,1045.1,1044.2,1.92449218]
[1759402848776,0.85578205,1045.0,1044.2,1.92449218]
[1759402849579,0.85578205,1045.1,1044.2,1.92449218]
[1759402849774,0.85578205,1045.0,1044.2,1.92449218]
[1759402850678,0.85578205,1045.1,1044.2,1.92449218]
[1759402850878,0.85578205,1045.0,1044.2,1.92449218]
[1759402851075,0.85578205,1045.1,1044.2,1.92449218]
[1759402852080,0.85578205,1045.2,1044.2,1.92449218]
[1759402852877,0.85578205,1045.1,1044.2,1.92449218]
[1759402853380,0.85578205,1045.2,1044.2,1.92449218]
[1759402853977,0.85578205,1045.3,1044.2,1.92449218]
[1759402854779,1.02236853,1045.4,1044.2,1.92449218]
[1759402856181,0.85578205,1045.3,1044.2,1.92449218]
[1759402856678,0.16658648,1045.4,1044.2,1.92449218]
[1759402857882,0.16658648,1045.4,1044.3,1.122]
[1759402858782,0.16658648,1045.4,1044.4,0.921]
[1759402858986,0.16658648,1045.4,1044.5,1.89814239]
[1759402859883,1.02236853,1045.4,1044.5,1.89814239]
[1759402860083,0.85578205,1045.2,1044.5,1.89814239]
[1759402861484,0.85578205,1045.1,1044.5,1.89814239]
[1759402861688,0.85578205,1045.9,1044.5,1.89814239]
[1759402861888,0.16654104,1045.5,1044.5,1.89814239]
[1759402872411,1.02232309,1045.5,1044.5,1.89814239]
[1759402873296,0.16654104,1045.5,1044.5,1.89814239]
[1759402874196,1.02232309,1045.5,1044.5,1.89814239]
[1759402876497,0.85578205,1045.3,1044.5,1.89814239]
[1759402876798,0.85578205,1045.3,1044.6,1.154]
[1759402879701,0.85578205,1045.4,1044.6,1.154]
[1759402882303,0.85578205,1045.3,1044.6,1.154]
[1759402882799,0.16654104,1045.5,1044.6,1.154]
[1759402883299,1.02232309,1045.5,1044.6,1.154]
[1759402883501,0.85578205,1045.3,1044.6,1.154]
[1759402883803,0.85578205,1045.4,1044.6,1.154]
[1759402884201,0.85578205,1045.3,1044.6,1.154]
[1759402886516,0.85578205,1045.4,1044.6,1.154]
[1759402887112,0.85578205,1045.3,1044.6,1.154]
[1759402892420,0.85578205,1045.2,1044.6,1.154]
[1759402892620,0.85578205,1045.3,1044.6,1.154]
[1759402894820,0.85578205,1045.3,1044.7,1.318]
[1759402895020,0.85578205,1045.3,1044.8,1.89241905]
[1759402897625,0.85578205,1045.4,1044.8,1.89241905]
[1759402897826,0.85578205,1045.3,1044.8,1.89241905]
[1759402901225,0.85578205,1045.2,1044.8,1.89241905]
[1759402904331,0.85578205,1045.1,1044.8,1.89241905]
[1759402909032,0.85578205,1045.2,1044.8,1.89241905]
[1759402912338,0.85578205,1045.3,1044.8,1.89241905]
[1759402912837,0.85578205,1045.2,1044.8,1.89241905]
[1759402913034,1.44949532,1045.5,1044.8,1.89241905]
[1759402913035,0.85578205,1045.3,1044.8,1.89241905]
[1759402915137,0.85578205,1045.2,1044.8,1.89241905]
[1759402916741,0.85578205,1045.3,1044.8,1.89241905]
[1759402918342,0.85578205,1045.4,1044.8,1.89241905]
[1759402918542,1.02232309,1045.5,1044.8,1.89241905]
[1759402919448,0.16654104,1045.5,1044.8,1.89241905]
[1759402920045,0.16654104,1045.5,1044.9,1.319]
[1759402924149,0.85578205,1045.8,1044.9,1.319]
[1759402924347,1.02226613,1045.8,1044.9,1.319]
[1759402924649,0.16648408,1045.8,1044.9,1.319]
[1759402925647,2.13873633,1046.1,1044.9,1.319]
[1759402925857,0.85578205,1046.1,1044.9,1.319]
[1759402926160,1.02223706,1046.1,1045.1,1.92860157]
[1759402927252,0.16645501,1046.1,1045.1,1.92860157]
[1759402934154,0.85578205,1046.2,1045.1,1.92860157]
[1759402934353,0.85578205,1046.6,1045.1,1.92860157]
[1759402934555,0.16641879,1046.3,1045.1,1.92860157]
[1759402942367,1.02220084,1046.3,1045.1,1.92860157]
[1759402942768,0.85578205,1046.2,1045.1,1.92860157]
[1759402943468,0.16641879,1046.3,1045.1,1.92860157]
[1759402946067,0.85578205,1046.9,1045.1,1.92860157]
[1759402946271,0.16636907,1046.5,1045.1,1.92860157]
[1759402946671,0.16636907,1046.5,1045.2,1.105]
[1759402947072,0.85578205,1047.0,1045.2,1.105]
[1759402947272,0.85578205,1047.2,1045.2,1.105]
[1759402947473,0.16634998,1046.7,1045.2,1.105]
[1759402970091,0.16634998,1046.7,1045.4,1.89077368]
[1759402975092,0.16634998,1046.7,1045.5,1.184]
[1759402982898,1.02213203,1046.7,1045.5,1.184]
[1759402986103,0.16634998,1046.7,1045.5,1.184]
[1759402986402,0.85578205,1046.5,1045.5,1.184]
[1759402987202,0.85578205,1046.4,1045.5,1.184]
[1759402988205,0.85578205,1046.4,1045.4,1.89077368]
[1759402989800,0.85578205,1046.4,1045.5,0.856]
[1759402990405,0.85578205,1046.5,1045.5,0.856]
[1759402992908,0.85578205,1046.2,1045.5,0.856]
[1759402993309,0.85578205,1046.3,1045.5,0.856]
[1759402994207,0.85578205,1046.4,1045.5,0.856]
[1759402996510,1.02213203,1046.7,1045.5,0.856]
[1759403004013,0.16634998,1046.7,1045.5,0.856]
[1759403006312,1.02213203,1046.7,1045.5,0.856]
[1759403006518,0.85578205,1046.4,1045.5,0.856]
[1759403007619,0.85578205,1046.6,1045.5,0.856]
[1759403007816,2.30508631,1046.7,1045.5,0.856]
[1759403008015,1.02213203,1046.7,1045.5,0.856]
[1759403010516,0.16634998,1046.7,1045.5,0.856]
[1759403011721,0.85578205,1047.2,1045.5,0.856]
[1759403011946,0.85578205,1047.5,1045.8,0.63683442]
[1759403012126,0.16629354,1047.3,1045.8,0.63683442]
[1759403012322,0.16629354,1047.3,1045.7,0.63683442]
[1759403012528,0.16629354,1047.3,1045.8,0.63683442]
[1759403013328,0.85578205,1048.0,1045.6,0.63683442]
[1759403013526,1.02198823,1047.9,1046.1,0.63683442]
[1759403014328,1.02198823,1047.9,1046.0,0.63683442]
[1759403014629,1.02198823,1047.9,1046.2,0.989]
[1759403014829,1.02198823,1047.9,1046.3,1.92555571]
[1759403015330,0.16620618,1047.9,1046.3,1.92555571]
[1759403016728,1.02198823,1047.9,1046.3,1.92555571]
[1759403016927,0.16620618,1047.9,1046.3,1.92555571]
[1759403017127,0.85578205,1047.8,1046.3,1.92555571]
[1759403017326,1.02198823,1047.9,1046.3,1.92555571]
[1759403017530,0.85578205,1047.6,1046.3,1.92555571]
[1759403018428,0.85578205,1047.8,1046.3,1.92555571]
[1759403018628,0.85578205,1047.7,1046.3,1.92555571]
[1759403018827,0.85578205,1047.8,1046.3,1.92555571]
[1759403019435,0.85578205,1047.6,1046.3,1.92555571]
[1759403019630,0.85578205,1047.5,1046.3,1.92555571]
[1759403019832,0.85578205,1047.4,1046.3,1.92555571]
[1759403020229,0.85578205,1047.6,1046.3,1.92555571]
[1759403020634,0.85578205,1047.5,1046.3,1.92555571]
[1759403020831,0.85578205,1047.4,1046.3,1.92555571]
[1759403021735,0.85578205,1047.6,1046.3,1.92555571]
[1759403024435,0.85578205,1047.5,1046.3,1.92555571]
[1759403024835,0.85578205,1047.6,1046.3,1.92555571]
[1759403025534,0.85578205,1047.5,1046.3,1.92555571]
[1759403025740,0.85578205,1047.4,1046.3,1.92555571]
[1759403026036,0.85578205,1047.3,1046.3,1.92555571]
[1759403026238,0.85578205,1047.5,1046.3,1.92555571]
[1759403026433,0.85578205,1047.7,1046.3,1.92555571]
[1759403026737,0.85578205,1047.5,1046.3,1.92555571]
[1759403027439,0.85578205,1047.6,1046.3,1.92555571]
[1759403027640,0.85578205,1047.6,1046.4,0.827]
[1759403027936,1.02198823,1047.9,1046.4,0.827]
[1759403028536,0.16620618,1047.9,1046.4,0.827]
[1759403029239,1.02198823,1047.9,1046.4,0.827]
[1759403029536,0.16620618,1047.9,1046.4,0.827]
[1759403031836,0.85578205,1048.5,1046.6,1.87175498]
[1759403032037,0.1661427,1048.1,1046.6,1.87175498]
[1759403042045,0.85578205,1048.8,1046.6,1.87175498]
[1759403042242,0.16610146,1048.3,1046.6,1.87175498]
[1759403060356,1.02188351,1048.3,1046.6,1.87175498]
[1759403061355,0.85578205,1048.2,1046.6,1.87175498]
[1759403062260,0.85578205,1048.1,1046.6,1.87175498]
[1759403065365,0.85578205,1047.9,1046.6,1.87175498]
[1759403065560,0.85578205,1047.8,1046.6,1.87175498]
[1759403067572,0.85578205,1047.8,1046.7,1.213]
[1759403071774,0.85578205,1047.7,1046.7,1.213]
[1759403071991,0.85578205,1047.7,1046.9,1.14107013]
[1759403073572,0.85578205,1047.6,1046.9,1.14107013]
[1759403074378,0.85578205,1047.8,1046.9,1.14107013]
[1759403075875,0.85578205,1047.7,1046.9,1.14107013]
[1759403076274,0.85578205,1047.8,1046.9,1.14107013]
[1759403078187,0.85578205,1047.7,1046.9,1.14107013]
[1759403078481,0.85578205,1047.6,1046.9,1.14107013]
[1759403078979,0.85578205,1047.9,1046.9,1.14107013]
[1759403082082,0.85578205,1048.0,1046.9,1.14107013]
[1759403082295,0.85578205,1047.9,1046.9,1.14107013]
[1759403083382,0.16610146,1048.3,1046.9,1.14107013]
[1759403083986,1.02188351,1048.3,1046.9,1.14107013]
[1759403084988,0.16610146,1048.3,1046.9,1.14107013]
[1759403086187,1.02188351,1048.3,1046.9,1.14107013]
[1759403087389,0.85578205,1048.2,1046.9,1.14107013]
[1759403087590,0.85578205,1048.1,1046.9,1.14107013]
[1759403088390,1.02188351,1048.3,1046.9,1.14107013]
[1759403089606,0.85578205,1048.0,1046.9,1.14107013]
[1759403092190,0.85578205,1048.1,1046.9,1.14107013]
[1759403092699,0.85578205,1048.0,1046.9,1.14107013]
[1759403096097,0.85578205,1048.1,1046.9,1.14107013]
[1759403096594,0.16610146,1048.3,1046.9,1.14107013]
[1759403102199,1.02188351,1048.3,1046.9,1.14107013]
[1759403102400,0.16610146,1048.3,1046.9,1.14107013]
[1759403102602,1.02188351,1048.3,1046.9,1.14107013]
[1759403103801,0.85578205,1048.3,1046.9,1.14107013]
[1759403104404,0.85578205,1048.3,1047.0,1.152]
[1759403104603,0.85578205,1048.4,1047.0,1.152]
[1759403105611,0.85578205,1048.3,1047.0,1.152]
[1759403106604,0.85578205,1048.4,1047.0,1.152]
[1759403109609,1.02186924,1048.5,1047.0,1.152]
[1759403111815,0.16608719,1048.5,1047.0,1.152]
[1759403112514,0.16608719,1048.5,1047.1,1.19]
[1759403112811,0.16608719,1048.5,1047.2,1.1281489]
[1759403116416,0.85578205,1048.4,1047.2,1.1281489]
[1759403116918,0.16608719,1048.5,1047.2,1.1281489]
[1759403116919,0.85578205,1048.3,1047.2,1.1281489]
[1759403117219,0.85578205,1048.2,1047.2,1.1281489]
[1759403117620,0.85578205,1048.4,1047.2,1.1281489]
[1759403119119,0.85578205,1048.3,1047.2,1.1281489]
[1759403119419,0.85578205,1048.4,1047.2,1.1281489]
[1759403121520,0.85578205,1048.3,1047.2,1.1281489]
[1759403121721,0.85578205,1048.0,1047.2,1.1281489]
[1759403122120,0.85578205,1048.1,1047.2,1.1281489]
[1759403125222,0.85578205,1048.0,1047.2,1.1281489]
[1759403125423,0.85578205,1048.1,1047.2,1.1281489]
[1759403127523,0.85578205,1048.0,1047.2,1.1281489]
[1759403128230,0.85578205,1047.9,1047.2,1.1281489]
[1759403128728,0.85578205,1048.2,1047.2,1.1281489]
[1759403129225,0.85578205,1047.8,1047.2,1.1281489]
[1759403129730,0.85578205,1047.7,1047.2,1.1281489]
[1759403133031,0.85578205,1047.8,1047.2,1.1281489]
[1759403134434,0.85578205,1047.8,1047.3,0.843]
[1759403136836,0.85578205,1047.8,1047.4,0.865]
[1759403138233,0.85578205,1047.9,1047.4,0.865]
[1759403140735,0.85578205,1047.8,1047.4,0.865]
[1759403142038,0.85578205,1047.7,1047.4,0.865]
[1759403142538,0.85578205,1047.6,1047.4,0.865]
[1759403144338,0.85578205,1047.7,1047.4,0.865]
[1759403145537,0.85578205,1047.7,1047.5,1.15333826]
[1759403145836,0.85578205,1047.9,1047.5,1.15333826]
[1759403146636,0.85578205,1048.0,1047.5,1.15333826]
[1759403147236,0.85578205,1047.9,1047.5,1.15333826]
[1759403148039,0.85578205,1048.0,1047.5,1.15333826]
[1759403148238,0.85578205,1047.9,1047.5,1.15333826]
[1759403148639,0.85578205,1047.8,1047.5,1.15333826]
[1759403149337,0.85578205,1047.9,1047.5,1.15333826]
[1759403149741,0.85578205,1048.0,1047.5,1.15333826]
[1759403151041,0.85578205,1048.0,1047.6,1.325]
[1759403151737,0.85578205,1048.1,1047.6,1.325]
[1759403152642,0.85578205,1048.0,1047.6,2.45329684]
[1759403152839,0.85578205,1048.1,1047.6,2.45329684]
[1759403153443,0.85578205,1048.1,1047.7,1.269]
[1759403156146,0.85578205,1048.0,1047.7,1.269]
[1759403158448,0.85578205,1047.9,1047.7,1.269]
[1759403159650,0.85578205,1048.0,1047.7,1.269]
[1759403160451,0.85578205,1048.4,1047.7,1.269]
[1759403166259,0.85578205,1048.3,1047.7,1.269]
[1759403166858,0.85578205,1048.2,1047.7,1.269]
[1759403168058,0.85578205,1048.1,1047.7,1.269]
[1759403173457,0.85578205,1048.0,1047.7,1.269]
[1759403174356,0.85578205,1048.1,1047.7,1.269]
[1759403174559,0.85578205,1048.0,1047.7,1.269]
[1759403174957,0.85578205,1048.1,1047.7,1.269]
[1759403175560,0.85578205,1048.0,1047.7,1.269]
[1759403175958,0.85578205,1048.3,1047.7,1.269]
[1759403177964,0.85578205,1048.4,1047.7,1.269]
[1759403179362,0.85578205,1048.3,1047.7,1.269]
[1759403181262,0.85578205,1048.4,1047.7,1.269]
[1759403182567,1.02186924,1048.5,1047.7,1.269]
[1759403184265,0.16608719,1048.5,1047.7,1.269]
[1759403184466,0.16608719,1048.5,1047.6,2.44832713]
[1759403185472,1.02186924,1048.5,1047.6,2.44832713]
[1759403185667,0.16608719,1048.5,1047.6,2.44832713]
[1759403187365,0.16608719,1048.5,1047.7,0.891]
[1759403187568,0.16608719,1048.5,1047.7,0.895]
[1759403190169,1.02186924,1048.5,1047.7,0.895]
[1759403190770,0.16608719,1048.5,1047.7,0.895]
[1759403197073,0.16608719,1048.5,1047.8,1.159]
[1759403197273,0.16608719,1048.5,1047.9,1.15828741]
[1759403201373,1.02186924,1048.5,1047.9,1.15828741]
[1759403202176,0.16608719,1048.5,1047.9,1.15828741]
[1759403213683,1.02186924,1048.5,1047.9,1.15828741]
[1759403218385,0.16608719,1048.5,1047.9,1.15828741]
[1759403218586,0.16608719,1048.5,1048.0,0.829]
[1759403218785,1.02186924,1048.5,1048.0,0.829]
[1759403219885,0.85578205,1048.4,1048.0,0.829]
[1759403223290,0.85578205,1048.3,1048.0,0.829]
[1759403223790,1.44904147,1048.5,1048.0,0.829]
[1759403223791,0.85578205,1048.4,1048.0,0.829]
[1759403224186,0.85578205,1048.3,1048.0,0.829]
[1759403224690,0.16608719,1048.5,1048.0,0.829]
[1759403228893,0.85578205,1048.4,1048.0,0.829]
[1759403233196,0.85578205,1048.3,1048.0,0.829]
[1759403233499,0.85578205,1048.3,1048.1,1.136]
[1759403240198,0.85578205,1048.2,1048.1,1.136]
[1759403240696,0.85578205,1048.2,1048.1,2.28537337]
[1759403241200,0.85578205,1048.3,1048.1,1.136]
[1759403245802,0.85578205,1048.4,1048.1,1.136]
[1759403246005,1.28295428,1048.3,1048.1,1.136]
[1759403247004,0.85661264,1048.3,1048.1,1.136]
[1759403247403,0.85661264,1048.4,1048.1,1.136]
[1759403251305,0.85661264,1048.2,1048.1,1.136]
[1759403251506,1.28295428,1048.3,1048.1,1.136]
[1759403251705,0.16608719,1048.5,1048.1,1.136]
[1759403255608,0.16608719,1048.5,1048.1,0.03915074]
[1759403256210,2.30410756,1048.5,1047.4,0.972]
[1759403256408,0.8554883,1047.5,1047.4,0.972]
[1759403256708,0.8554883,1047.5,1047.4,2.13550382]
[1759403257406,0.8554883,1047.6,1047.4,2.13550382]
[1759403257810,0.8554883,1047.5,1047.4,2.13550382]
[1759403258211,0.8554883,1047.6,1047.4,2.13550382]
[1759403258706,0.8554883,1047.5,1047.4,2.13550382]
[1759403259109,0.8554883,1047.7,1047.4,2.13550382]
[1759403260010,0.8554883,1047.8,1047.4,2.13550382]
[1759403262513,0.8554883,1047.9,1047.4,2.13550382]
[1759403264817,0.8554883,1047.8,1047.4,2.13550382]
[1759403265914,0.8554883,1048.0,1047.4,2.13550382]
[1759403268818,0.8554883,1048.4,1047.4,2.13550382]
[1759403269718,0.8554883,1048.1,1047.4,2.13550382]
[1759403270018,0.8554883,1047.9,1047.4,2.13550382]
[1759403270619,0.8554883,1047.8,1047.4,2.13550382]
[1759403271816,0.8554883,1047.9,1047.4,2.13550382]
[1759403273423,0.8554883,1048.0,1047.4,2.13550382]
[1759403278424,0.8554883,1048.0,1047.4,0.972]
[1759403278623,0.8554883,1048.0,1047.4,2.12168803]
[1759403279520,0.8554883,1048.2,1047.4,2.12168803]
[1759403280022,0.8554883,1048.2,1047.4,1.14968803]
[1759403280721,0.8554883,1048.1,1047.4,1.14968803]
[1759403281622,0.8554883,1047.9,1047.4,1.14968803]
[1759403282127,0.8554883,1047.9,1047.4,1.15259905]
[1759403282322,0.8554883,1048.0,1047.4,1.15259905]
[1759403283026,0.8554883,1047.7,1047.4,1.15259905]
[1759403284226,0.8554883,1047.8,1047.4,1.15259905]
[1759403285328,0.8554883,1047.8,1047.3,0.829]
[1759403286627,0.8554883,1047.7,1047.3,0.829]
[1759403287637,0.8554883,1047.6,1047.3,0.829]
[1759403290630,0.8554883,1047.7,1047.3,0.829]
[1759403292432,0.8554883,1047.6,1047.3,0.829]
[1759403295240,0.8554883,1047.5,1047.3,0.829]
[1759403295537,0.8554883,1047.4,1047.3,0.829]
[1759403296035,1.28323245,1047.5,1047.3,0.829]
[1759403296335,1.28323245,1047.4,1047.3,0.829]
[1759403296633,1.28323245,1047.5,1047.3,0.829]
[1759403297537,1.28323245,1047.4,1047.3,0.829]
[1759403298039,2.13802037,1048.2,1047.3,0.829]
[1759403299237,1.27546086,1047.5,1047.3,0.829]
[1759403299938,1.27546086,1047.6,1047.3,0.829]
[1759403300339,1.27546086,1047.5,1047.3,0.829]
[1759403304047,1.27546086,1047.5,1046.4,1.14791911]
[1759403304246,0.85037982,1047.2,1046.4,1.14791911]
[1759403306244,0.85037982,1047.0,1046.4,1.14791911]
[1759403306746,0.85037982,1047.1,1046.5,1.122]
[1759403306947,0.85037982,1047.1,1046.5,1.126]
[1759403308043,0.16622682,1047.5,1046.5,1.126]
[1759403308044,0.85037982,1047.3,1046.5,1.126]
[1759403311649,0.85037982,1047.2,1046.5,1.126]
[1759403312652,0.85037982,1047.0,1046.5,1.126]
[1759403312850,0.85037982,1046.9,1046.5,1.126]
[1759403313055,0.85037982,1047.0,1046.5,1.126]
[1759403313453,0.85037982,1046.7,1046.5,1.126]
[1759403313654,0.85037982,1046.6,1046.5,1.126]
[1759403314051,1.27546086,1046.7,1046.5,1.126]
[1759403314257,1.27546086,1046.6,1046.5,1.122]
[1759403315156,1.27546086,1046.7,1046.5,1.122]
[1759403315360,1.27546086,1046.6,1046.5,1.122]
[1759403316060,0.85139839,1046.7,1046.5,1.122]
[1759403320759,0.85139839,1046.6,1046.2,1.16614618]
[1759403322264,0.85139839,1046.7,1046.2,1.16614618]
[1759403322965,0.85139839,1046.8,1046.2,1.16614618]
[1759403324663,0.85139839,1046.8,1046.2,1.16560249]
[1759403325664,0.85139839,1046.7,1046.2,1.16560249]
[1759403325867,0.85139839,1046.8,1046.2,1.16560249]
[1759403326166,0.85139839,1046.7,1046.2,1.16560249]
[1759403326967,0.85139839,1046.8,1046.2,1.16560249]
[1759403327269,0.85139839,1046.7,1046.2,1.16560249]
[1759403327466,0.85139839,1046.7,1046.0,1.225]
[1759403328368,0.85139839,1046.8,1046.0,1.225]
[1759403328563,0.85139839,1046.8,1046.0,2.36177383]
[1759403328768,0.85139839,1046.7,1046.0,2.36177383]
[1759403329670,0.85139839,1046.8,1046.0,2.36177383]
[1759403332369,0.85139839,1047.0,1046.0,2.36177383]
[1759403333968,0.85139839,1047.1,1046.0,2.36177383]
[1759403334271,0.85139839,1046.8,1046.0,2.36177383]
[1759403334471,0.85139839,1046.9,1046.0,2.36177383]
[1759403334668,0.85139839,1047.0,1046.0,2.36177383]
[1759403335469,0.85139839,1047.1,1046.0,2.36177383]
[1759403338779,0.85139839,1047.2,1046.0,2.36177383]
[1759403339270,0.85139839,1047.1,1046.0,2.36177383]
[1759403341073,0.85139839,1047.0,1046.0,2.36177383]
[1759403342974,0.85139839,1046.8,1046.0,2.36177383]
[1759403343177,0.85139839,1046.6,1046.0,2.36177383]
[1759403344880,0.85139839,1046.7,1046.0,2.36177383]
[1759403345077,0.85139839,1046.6,1046.0,2.36177383]
[1759403346179,0.85139839,1046.7,1046.0,2.36177383]
[1759403348184,0.85139839,1046.6,1046.0,2.36177383]
[1759403349585,0.85139839,1046.7,1046.0,2.36177383]
[1759403349882,0.85139839,1046.6,1046.0,2.36177383]
[1759403352482,0.85139839,1046.5,1046.0,2.36177383]
[1759403353285,0.85139839,1046.6,1046.0,2.36177383]
[1759403355782,0.85139839,1046.7,1046.0,2.36177383]
[1759403355988,0.16622682,1047.5,1046.0,2.36177383]
[1759403355989,0.85139839,1046.8,1046.0,2.36177383]
[1759403356387,0.85139839,1046.7,1046.0,2.36177383]
[1759403357987,0.85139839,1046.8,1046.0,2.36177383]
[1759403358283,0.85139839,1046.7,1046.0,2.36177383]
[1759403358488,0.85139839,1046.8,1046.0,2.36177383]
[1759403359183,0.85139839,1046.9,1046.0,2.36177383]
[1759403359990,0.85139839,1046.8,1046.0,2.36177383]
[1759403360887,0.85139839,1046.9,1046.0,2.36177383]
[1759403364791,0.85139839,1046.8,1046.0,2.36177383]
[1759403365289,0.85139839,1046.7,1046.0,2.36177383]
[1759403366093,0.85139839,1046.8,1046.0,2.36177383]
[1759403367297,0.85139839,1046.7,1046.0,2.36177383]
[1759403368002,0.85139839,1046.6,1046.0,2.36177383]
[1759403370098,0.85139839,1046.5,1046.0,2.36177383]
[1759403371400,0.85139839,1046.6,1046.0,2.36177383]
[1759403374104,0.85139839,1046.8,1046.0,2.36177383]
[1759403375304,0.85139839,1046.8,1046.0,1.225]
[1759403375507,0.85139839,1046.8,1046.1,1.16177509]
[1759403375702,0.85139839,1046.8,1046.1,1.16577509]
[1759403375907,0.85139839,1047.1,1046.1,1.16577509]
[1759403378915,0.85139839,1047.1,1046.2,1.17765973]
[1759403379213,0.85139839,1047.1,1046.2,1.18165973]
[1759403381911,0.85139839,1046.8,1046.2,1.18165973]
[1759403384613,0.85139839,1047.2,1046.2,1.18165973]
[1759403385417,0.85139839,1047.2,1046.3,1.1627461]
[1759403385616,0.85139839,1047.2,1046.3,1.1667461]
[1759403386812,0.85139839,1047.2,1046.4,0.941]
[1759403387518,0.85139839,1047.1,1046.4,0.941]
[1759403387817,0.85139839,1047.0,1046.4,0.941]
[1759403388616,0.85139839,1047.1,1046.4,0.941]
[1759403389017,0.85139839,1047.1,1046.5,1.15121627]
[1759403389215,0.85139839,1047.1,1046.5,1.15521627]
[1759403391318,0.85139839,1047.2,1046.5,1.15521627]
[1759403392216,0.85139839,1047.1,1046.5,1.15521627]
[1759403392417,0.85139839,1047.2,1046.5,1.15521627]
[1759403393118,0.85139839,1047.1,1046.5,1.15521627]
[1759403393316,0.85139839,1047.2,1046.5,1.15521627]
[1759403394319,0.85139839,1047.3,1046.5,1.15521627]
[1759403394814,0.85139839,1047.2,1046.5,1.15521627]
[1759403395416,0.85139839,1047.3,1046.5,1.15521627]
[1759403396123,0.85139839,1047.2,1046.5,1.15521627]
[1759403397022,0.16622682,1047.5,1046.5,1.15521627]
[1759403417139,0.16622682,1047.5,1046.6,0.908]
[1759403418534,0.85139839,1047.2,1046.6,0.908]
[1759403418739,0.85139839,1047.1,1046.6,0.908]